fUSD/lending_fUSD_20251113
["ID","MTS","AMOUNT","RATE_DAILY","PERIOD"]
[393845408,1763039432457,-324.04214263,0.00017973,2]
[393845409,1763039432467,-500.0,0.00017999,2]
[393845410,1763039432478,-500.0,0.00017999,2]
[393845411,1763039432491,-1040.9103192,0.00017999,5]
[393845412,1763039432501,-4288.5382813,0.00017999,2]
[393845413,1763039432511,-500.0,0.00017999,2]
[393845414,1763039432521,-87370.35781781,0.00018,2]
[393845415,1763039432541,-10791.57555077,0.00018,2]
[393845416,1763039432553,-1243.90456058,0.00018,2]
[393845426,1763039433343,-3.28675112,0.00018,2]
[393845427,1763039433354,-212220.8384629,0.00018,2]
[393845428,1763039433366,-28337.46037958,0.00018,2]
[393845429,1763039433377,-31257.71351308,0.00018,2]
[393845430,1763039433389,-1303.19519682,0.00018,2]
[393845431,1763039433412,-2583.5170317,0.00018,2]
[393845432,1763039433647,-4170.8786419,0.00018,2]
[393845436,1763039438261,-4516.50423851,0.00018,2]
[393845437,1763039438371,-500.78466187,0.00018,2]
[393845438,1763039438383,-10500.0,0.00018,2]
[393845439,1763039438395,-1856.434,0.00018,2]
[393845617,1763039440311,-299.91978932,0.00018,2]
[393845620,1763039440324,-1044.77646488,0.00018,2]
[393845627,1763039440369,-159423.56297496,0.00018,2]
[393845652,1763039440584,-2118.8,0.00018,2]
[393845654,1763039440598,-1797.50000005,0.00018,2]
[393845656,1763039440609,-327.84001672,0.00018,2]
[393845767,1763039443489,-869.86393473,0.00018,2]
[393845768,1763039443503,-571.38557941,0.00018,2]
[393845769,1763039443516,-271.0689999,0.00018,2]
[393845770,1763039443606,-1.22762897,0.00018,2]
[393845782,1763039446618,-739.43802926,0.00018,2]
[393846213,1763039528024,250.0,0.00040693,120]
[393846214,1763039528751,250.0,0.00040693,120]
[393846215,1763039529426,250.0,0.00040693,120]
[393846216,1763039530404,250.0,0.00040693,120]
[393846217,1763039531063,250.0,0.00040693,120]
[393846218,1763039531399,151.0,0.00040693,120]
[393846219,1763039531639,250.0,0.00040693,120]
[393846220,1763039532046,151.0,0.00040693,120]
[393846221,1763039532267,250.0,0.00040693,120]
[393846222,1763039532663,151.0,0.00040693,120]
[393846223,1763039533138,250.0,0.00040693,120]
[393846224,1763039533312,151.0,0.00040693,120]
[393846225,1763039533770,250.0,0.00040693,120]
[393846226,1763039533939,151.0,0.00040693,120]
[393846227,1763039534425,250.0,0.00040693,120]
[393846228,1763039534563,151.0,0.00040693,120]
[393846229,1763039535168,151.0,0.00040693,120]
[393846230,1763039535813,151.0,0.00040693,120]
[393846231,1763039536458,151.0,0.00040693,120]
[393846232,1763039570953,702.81,0.00016438,2]
[393846234,1763039644316,375.64157914,0.000165,2]
[393846235,1763039655164,353.39551427,0.000165,2]
[393846236,1763039983459,5050.0,0.00040685,38]
[393846237,1763040110750,498.70618852,0.00040685,30]
[393846238,1763040150166,167.84,0.00026263,120]
[393846239,1763040249544,-250.0,0.00017,2]
[393846240,1763040249569,-167.84,0.00017508,2]
[393846241,1763040249595,-200.0,0.00017557,2]
[393846242,1763040249620,-150.0,0.00017558,2]
[393846243,1763040249649,-1725.16456899,0.00017611,2]
[393846244,1763040249674,-222.11642815,0.00017643,2]
[393846245,1763040249699,-250.0,0.00017647,2]
[393846246,1763040249727,-1000.0,0.00017655,2]
[393846247,1763040249759,-224.9722588,0.000177,2]
[393846248,1763040249791,-167.02751431,0.000179,2]
[393846249,1763040249822,-268.64065804,0.000179,2]
[393846250,1763040249854,-186.53728226,0.000179,2]
[393846251,1763040249882,-5127.79579227,0.000179,2]
[393846252,1763040249911,-6824.61317425,0.000179,2]
[393846253,1763040249941,-500.0,0.00017973,2]
[393846254,1763040249971,-500.0,0.00017973,2]
[393846255,1763040250000,-500.0,0.00017973,2]
[393846256,1763040250030,-500.0,0.00017973,2]
[393846257,1763040250058,-500.0,0.00017973,2]
[393846258,1763040250086,-500.0,0.00017973,2]
[393846259,1763040250116,-250.0,0.00017977,2]
[393846260,1763040250146,-500.0,0.00017999,2]
[393846261,1763040250175,-500.0,0.00017999,2]
[393846262,1763040250206,-332.10480629,0.00017999,2]
[393846263,1763040250237,-567.08701969,0.00017999,2]
[393846264,1763040250263,-500.0,0.00017999,2]
[393846265,1763040250298,-241.21753528,0.00017999,2]
[393846266,1763040250326,-500.0,0.00017999,2]
[393846267,1763040250353,-500.0,0.00017999,2]
[393846268,1763040250384,-561.46292857,0.00017999,2]
[393846269,1763040250413,-342.05852365,0.00017999,2]
[393846270,1763040250441,-500.0,0.00017999,2]
[393846271,1763040250475,-620.5,0.00017999,2]
[393846272,1763040250504,-158.88,0.00017999,2]
[393846273,1763040250543,-500.0,0.00017999,2]
[393846274,1763040250572,-1235.94,0.00017999,2]
[393846275,1763040250600,-332.17372675,0.00017999,2]
[393846276,1763040250627,-1954679.31829168,0.00018,2]
[393846277,1763040250654,-151.0,0.00018,2]
[393846278,1763040250680,-30316.3415263,0.00018,2]
[393846279,1763040257138,-500.0,0.00017973,2]
[393846280,1763040257496,-431.98602529,0.00018,2]
[393846281,1763040257546,-10000.01,0.00018,2]
[393846282,1763040257562,-10000.01,0.00018,2]
[393846283,1763040257602,-3206.98817799,0.00018,2]
[393846284,1763040257627,-3586.03364402,0.00018,2]
[393846285,1763040257669,-681.10437,0.00018,2]
[393846286,1763040258456,500.0,0.00017973,2]
[393846287,1763040260108,500.0,0.00017999,2]
[393846288,1763040260153,500.0,0.00017999,2]
[393846289,1763040260228,500.0,0.00017999,2]
[393846290,1763040260261,500.0,0.00017999,2]
[393846291,1763040260320,500.0,0.00017999,2]
[393846292,1763040260377,500.0,0.00017999,2]
[393846293,1763040260435,500.0,0.00017999,2]
[393846294,1763040260491,457.42542819,0.00017999,2]
[393846295,1763040265634,164.58852258,0.00017999,2]
[393846296,1763040348748,193.25,0.00016712,2]
[393846297,1763040384633,2030.91704497,0.00015,2]
[393846298,1763040412046,86745.8,0.000162,5]
[393846299,1763040499112,-1095.73802542,0.00017,2]
[393846300,1763040509430,503.42736913,0.000154,2]
[393846301,1763040515699,6218.24750899,0.00015,3]
[393846302,1763040515724,100000.0,0.00015,3]
[393846303,1763040515748,64221.56575277,0.00015,3]
[393846304,1763040516581,7272.4155859,0.00015,2]
[393846305,1763040516607,2727.5944141,0.00015,2]
[393846307,1763040547011,-300.0,0.00017,2]
[393846308,1763040574108,-244.36544463,0.00017,2]
[393846309,1763040580363,176.80771075,0.00016963,2]
[393846310,1763040580398,-207.64977767,0.00017,2]
[393846311,1763040604067,-231.85151084,0.00017,2]
[393846312,1763040607740,-426.12331241,0.00017,2]
[393846313,1763040616300,-19404.31,0.00017,2]
[393846327,1763040631505,-1460.45530618,0.00017,2]
[393846329,1763040631516,-2443.41629872,0.00017,2]
[393846330,1763040631527,-717.99160486,0.00017,2]
[393846335,1763040631570,-11636.52069224,0.00017,2]
[393846336,1763040631581,-6176.8853244,0.00017,2]
[393846337,1763040631593,-2285.26728933,0.00017,2]
[393846338,1763040631606,-16644.99929967,0.00017,2]
[393846339,1763040631632,-136075.42039386,0.00017,2]
[393846340,1763040631642,-166.66,0.00017063,2]
[393846341,1763040631653,-40154.4,0.00017421,2]
[393846342,1763040631663,-166.66,0.00017422,2]
[393846343,1763040631672,-200.0,0.000176,6]
[393846344,1763040631682,-500.0,0.000177,6]
[393846345,1763040631691,-235.09790462,0.00017779,2]
[393846346,1763040631701,-166.66,0.00017782,2]
[393846347,1763040631711,-700.0,0.000178,6]
[393846348,1763040631721,-1000.0,0.000179,6]
[393846349,1763040631730,-163.22012203,0.000179,2]
[393846350,1763040631740,-4615.01621307,0.000179,2]
[393846351,1763040631750,-500.0,0.00017973,2]
[393846352,1763040631760,-500.0,0.00017973,2]
[393846353,1763040631771,-500.0,0.00017973,2]
[393846354,1763040631782,-500.0,0.00017973,2]
[393846355,1763040631792,-500.0,0.00017973,2]
[393846356,1763040631803,-8011.1156499,0.00017998,2]
[393846357,1763040631812,-12337.0402276,0.00017998,2]
[393846359,1763040631822,-480.69023367,0.00017999,2]
[393846360,1763040631831,-232.52160872,0.00017999,2]
[393846361,1763040631841,-500.0,0.00017999,2]
[393846362,1763040631851,-439.71393647,0.00017999,2]
[393846363,1763040631860,-54546.39418137,0.00018,2]
[393846364,1763040631872,-51119.18537947,0.00018,2]
[393846365,1763040631883,-60463.63859745,0.00018,2]
[393846366,1763040631895,-144249.53562938,0.00018,2]
[393846367,1763040631906,-977.3327285,0.00018,2]
[393846368,1763040631917,-25987.08522611,0.00018,2]
[393846369,1763040631929,-2430.63083125,0.00018,2]
[393846372,1763040631945,-17686.7085926,0.00018,2]
[393846373,1763040631959,-334.33830891,0.00018,2]
[393846381,1763040637682,-1819.36059984,0.00018,2]
[393846382,1763040637695,-15690.78160748,0.00018,2]
[393846383,1763040637719,-409.4016062,0.00018,2]
[393846384,1763040637734,-342.53067706,0.00018,2]
[393846385,1763040637756,-1661.4950474,0.00018,2]
[393846389,1763040637885,-337.50566099,0.00018,2]
[393846451,1763040639678,-321.6776653,0.00018,2]
[393846452,1763040639741,-250.0,0.00018,2]
[393846453,1763040639752,-1857.52632007,0.00018,2]
[393846454,1763040639802,-696.558,0.00018,2]
[393846455,1763040639862,-19411.75796164,0.00018,2]
[393846456,1763040639919,-525.8,0.00018,2]
[393846473,1763040642799,-4065.27632964,0.00018,2]
[393846501,1763040645615,-1405.93253474,0.00018,2]
[393846502,1763040645784,-3515.02480702,0.00018,2]
[393846503,1763040645844,-433.84679999,0.00018,2]
[393846519,1763040666092,488.4411295,0.00040673,120]
[393846520,1763040811343,161.277376,0.00040673,120]
[393846521,1763040855614,164.441831,0.00040673,120]
[393846522,1763040944661,-921.99,0.00024658,30]
[393846523,1763040944694,-921.99,0.00029704,30]
[393846524,1763040944722,-163.08276468,0.000299,30]
[393846525,1763040944752,-468.8353661,0.0003013,30]
[393846526,1763040944778,-1007.39,0.00030137,120]
[393846527,1763040944804,-1007.39,0.00030166,120]
[393846528,1763040944829,-1007.39,0.00030196,120]
[393846529,1763040944855,-1007.39,0.00030227,120]
[393846530,1763040944880,-1007.39,0.0003026,120]
[393846531,1763040944907,-1007.39,0.00030295,120]
[393846532,1763040944937,-1007.39,0.00030333,120]
[393846533,1763040944962,-1007.39,0.00030372,120]
[393846534,1763040944987,-1007.39,0.00030415,120]
[393846535,1763040945012,-1007.39,0.0003046,120]
[393846536,1763040945037,-1007.39,0.00030509,120]
[393846537,1763040945061,-1007.39,0.00030563,120]
[393846538,1763040945085,-1007.39,0.00030621,120]
[393846539,1763040945112,-1007.39,0.00030686,120]
[393846540,1763040945138,-1007.39,0.00030758,120]
[393846541,1763040945164,-1007.39,0.00030841,120]
[393846542,1763040945190,-1007.39,0.00030935,120]
[393846543,1763040945216,-1007.39,0.00031047,120]
[393846544,1763040945242,-1007.39,0.00031185,120]
[393846545,1763040945269,-1007.39,0.00031362,120]
[393846546,1763040945297,-151.0,0.00032232,31]
[393846547,1763040945323,-153.005814,0.00032232,31]
[393846548,1763040945355,-151.000003,0.00032232,31]
[393846549,1763040945382,-151.0,0.00032232,31]
[393846550,1763040945411,-153.286078,0.00032384,31]
[393846551,1763040945438,-151.0,0.00032384,31]
[393846552,1763040945464,-151.0,0.00032384,31]
[393846553,1763040945490,-151.0,0.00032384,31]
[393846554,1763040945515,-151.0,0.00032384,30]
[393846555,1763040945541,-151.0,0.00032384,31]
[393846556,1763040945567,-167.587005,0.00032384,31]
[393846557,1763040945592,-151.0,0.00032384,31]
[393846558,1763040945622,-194.0,0.00034521,30]
[393846559,1763040945649,-921.99,0.00034751,30]
[393846560,1763040945678,-195.50802629,0.00035616,120]
[393846561,1763040945705,-500.0,0.00035958,30]
[393846562,1763040945736,-302.011735,0.00036,30]
[393846563,1763040945955,-302.011735,0.00036,30]
[393846564,1763040945983,-302.011735,0.00036,30]
[393846565,1763040946011,-302.011735,0.00036,30]
[393846566,1763040946038,-1803.37524357,0.00036583,30]
[393846567,1763040946064,-1000.24079532,0.00036583,30]
[393846568,1763040946088,-1847.3488344,0.00036583,30]
[393846569,1763040946117,-1017.45328069,0.00036583,30]
[393846570,1763040946141,-1997.71458351,0.00036583,30]
[393846571,1763040946166,-1017.67628983,0.00036583,30]
[393846572,1763040946200,-1000.0,0.00036583,30]
[393846573,1763040946233,-1000.0,0.00036583,30]
[393846574,1763040946260,-1000.0,0.00036583,30]
[393846575,1763040946286,-1333.97768008,0.00036583,30]
[393846576,1763040946312,-1000.0,0.00036583,30]
[393846577,1763040946339,-151.0,0.00036583,31]
[393846578,1763040946369,-151.0,0.00036583,31]
[393846579,1763040946397,-216.8,0.000366,30]
[393846580,1763040946426,-151.0,0.000369,31]
[393846581,1763040946454,-151.0,0.000369,31]
[393846582,1763040946482,-151.0,0.000369,31]
[393846583,1763040946510,-396.298166,0.000369,31]
[393846584,1763040946538,-396.298166,0.000369,31]
[393846585,1763040946566,-396.298166,0.000369,31]
[393846586,1763040946600,-396.298166,0.000369,31]
[393846587,1763040946628,-1527366.0,0.00037,30]
[393846588,1763040946659,-151.0,0.00037,30]
[393846589,1763040946687,-151.0,0.00037,31]
[393846590,1763040946718,-151.0,0.00037,31]
[393846591,1763040946746,-154.115647,0.00037,31]
[393846592,1763040946775,-230.998854,0.00037,31]
[393846593,1763040946803,-151.0,0.00037,31]
[393846594,1763040946830,-153.728775,0.00037,31]
[393846595,1763040946857,-299.75994,0.00037,31]
[393846596,1763040946887,-151.0,0.00037,31]
[393846597,1763040946913,-299.75994,0.00037,31]
[393846598,1763040946940,-299.75994,0.00037,31]
[393846599,1763040946967,-299.75994,0.00037,31]
[393846600,1763040946993,-151.0,0.00037,31]
[393846601,1763040947020,-151.0,0.00037,31]
[393846602,1763040947046,-151.631959,0.00037,31]
[393846603,1763040947073,-153.129539,0.00037,31]
[393846604,1763040947101,-154.14105,0.00037,31]
[393846605,1763040947134,-151.0,0.00037,31]
[393846606,1763040947163,-153.390473,0.00037,31]
[393846607,1763040947189,-151.0,0.00037,31]
[393846608,1763040947216,-190.373599,0.00037,31]
[393846609,1763040947243,-151.0,0.00037,31]
[393846610,1763040947268,-151.0,0.00037,31]
[393846611,1763040947294,-151.0,0.00037,31]
[393846612,1763040947320,-151.0,0.00037,31]
[393846613,1763040947346,-155.934058,0.00037,31]
[393846614,1763040947377,-157.135353,0.00037,31]
[393846615,1763040947403,-151.0,0.00037,31]
[393846616,1763040947430,-151.0,0.00037,31]
[393846617,1763040947456,-151.0,0.00037,31]
[393846618,1763040947482,-396.298166,0.00037,31]
[393846619,1763040947508,-396.298166,0.00037,31]
[393846620,1763040947533,-396.298166,0.00037,31]
[393846621,1763040947559,-396.298166,0.00037,31]
[393846622,1763040947586,-151.0,0.00037,31]
[393846623,1763040947619,-151.0,0.00037,31]
[393846624,1763040947649,-302.011735,0.00037,30]
[393846625,1763040947678,-302.011735,0.00037,30]
[393846626,1763040947708,-302.011735,0.00037,30]
[393846627,1763040947739,-302.011735,0.00037,30]
[393846628,1763040947767,-1000.0,0.000378,30]
[393846629,1763040947794,-197.0,0.000378,60]
[393846630,1763040947821,-199.75,0.000378,120]
[393846631,1763040947849,-1000.0,0.000379,40]
[393846632,1763040947878,-500.0,0.00037901,30]
[393846633,1763040947906,-166.88,0.00037933,60]
[393846634,1763040947933,-1000.0,0.00038,60]
[393846635,1763040947964,-166.88,0.00038033,60]
[393846636,1763040947991,-216.8,0.000381,30]
[393846637,1763040948020,-166.88,0.00038133,60]
[393846638,1763040948049,-166.88325274,0.00038233,60]
[393846639,1763040948074,-739.0,0.0003833,30]
[393846640,1763040948103,-347.07296921,0.00038345,30]
[393846641,1763040948130,-1020.22,0.000386,30]
[393846642,1763040948155,-500.0,0.000387,120]
[393846643,1763040948181,-500.0,0.000387,120]
[393846644,1763040948205,-500.0,0.000387,120]
[393846645,1763040948231,-500.0,0.000387,120]
[393846646,1763040948260,-168.24670757,0.000387,120]
[393846647,1763040948289,-1000.0,0.00038904,120]
[393846648,1763040948316,-1000.0,0.00038904,120]
[393846649,1763040948356,-1000.0,0.00038904,120]
[393846650,1763040948387,-500.0,0.00038904,120]
[393846651,1763040948416,-501.16122283,0.00039,120]
[393846652,1763040948445,-181.0,0.00039,30]
[393846653,1763040948473,-3000.0,0.000391,30]
[393846654,1763040948504,-216.8,0.000394,30]
[393846655,1763040948531,-150.0,0.00039499,30]
[393846656,1763040948561,-302.011735,0.000395,30]
[393846657,1763040948592,-302.011735,0.000395,30]
[393846658,1763040948625,-302.011735,0.000395,30]
[393846659,1763040948654,-302.011735,0.000395,30]
[393846660,1763040948682,-500.0,0.00039508,120]
[393846661,1763040948714,-525.0,0.00039508,120]
[393846662,1763040948743,-531.466417,0.00039508,120]
[393846663,1763040948774,-500.0,0.00039508,120]
[393846664,1763040948810,-700.0,0.00039691,30]
[393846665,1763040948846,-151.0,0.00039693,120]
[393846666,1763040949059,-151.0,0.00039693,120]
[393846667,1763040949122,-396.298166,0.00039693,120]
[393846668,1763040949149,-396.298166,0.00039693,120]
[393846669,1763040949177,-396.298166,0.00039693,120]
[393846670,1763040949208,-396.298158,0.00039693,120]
[393846671,1763040949234,-151.0,0.00039693,120]
[393846672,1763040949260,-151.0,0.00039693,120]
[393846673,1763040949286,-291.46,0.000397,120]
[393846674,1763040949326,-151.0,0.00039726,30]
[393846675,1763040949354,-151.0,0.00039726,120]
[393846676,1763040949379,-151.0,0.00039726,120]
[393846677,1763040949403,-282.70469,0.00039726,120]
[393846678,1763040949435,-500.0,0.00039726,120]
[393846679,1763040949462,-500.0,0.00039726,120]
[393846680,1763040949488,-500.0,0.00039726,120]
[393846681,1763040949515,-500.0,0.00039726,120]
[393846682,1763040949543,-500.0,0.00039726,120]
[393846683,1763040949570,-500.0,0.00039726,120]
[393846684,1763040949614,-151.0,0.00039726,120]
[393846685,1763040949640,-151.0,0.00039726,120]
[393846686,1763040949667,-151.0,0.00039726,120]
[393846687,1763040949692,-151.0,0.00039726,120]
[393846688,1763040949717,-151.0,0.00039726,120]
[393846689,1763040949750,-299.75994,0.00039726,120]
[393846690,1763040949777,-299.75994,0.00039726,120]
[393846691,1763040949802,-299.75994,0.00039726,120]
[393846692,1763040949827,-299.75994,0.00039726,120]
[393846693,1763040949851,-154.084957,0.00039726,90]
[393846694,1763040949875,-299.75994,0.00039726,120]
[393846695,1763040949898,-299.75994,0.00039726,120]
[393846696,1763040949920,-299.75994,0.00039726,120]
[393846697,1763040949943,-299.75994,0.00039726,120]
[393846698,1763040949968,-299.75994,0.00039726,120]
[393846699,1763040949993,-299.75994,0.00039726,120]
[393846700,1763040950018,-299.75994,0.00039726,120]
[393846701,1763040950041,-299.75994,0.00039726,120]
[393846702,1763040950064,-299.75994,0.00039726,120]
[393846703,1763040950088,-299.75994,0.00039726,120]
[393846704,1763040950114,-299.75994,0.00039726,120]
[393846705,1763040950137,-299.75994,0.00039726,120]
[393846706,1763040950161,-151.0,0.00039726,120]
[393846707,1763040950186,-193.063553,0.00039726,120]
[393846708,1763040950220,-151.0,0.00039726,120]
[393846709,1763040950246,-151.0,0.00039726,120]
[393846710,1763040950272,-151.0,0.00039726,120]
[393846711,1763040950418,-302.011735,0.00039726,30]
[393846712,1763040950446,-302.011735,0.00039726,30]
[393846713,1763040950477,-302.011735,0.00039726,30]
[393846714,1763040950506,-302.011731,0.00039726,30]
[393846715,1763040950550,-921.99,0.00039798,30]
[393846716,1763040950579,-168.24670757,0.000399,120]
[393846717,1763040950607,-3003.52674558,0.0004,30]
[393846718,1763040950635,-512.28701323,0.0004,120]
[393846719,1763040950661,-939.01396003,0.0004,120]
[393846720,1763040950692,-1000.0,0.0004,120]
[393846721,1763040950720,-27749.0,0.0004,30]
[393846722,1763040950745,-354.60094426,0.0004,120]
[393846723,1763040950772,-181.0,0.0004,30]
[393846724,1763040950800,-2000.0,0.000401,30]
[393846725,1763040950827,-5000.0,0.000402,120]
[393846726,1763040950857,-206.37744859,0.00040378,120]
[393846727,1763040950882,-206.37744865,0.00040378,120]
[393846728,1763040950908,-206.37744859,0.00040378,120]
[393846729,1763040950933,-206.37744859,0.00040378,120]
[393846730,1763040950959,-206.37744859,0.00040378,120]
[393846731,1763040950985,-590.419656,0.000404,33]
[393846732,1763040951012,-518.00707396,0.000405,120]
[393846733,1763040951037,-1675.01013477,0.00040571,120]
[393846734,1763040951063,-254.72900231,0.000406,120]
[393846735,1763040951089,-150.0,0.000406,44]
[393846736,1763040951116,-160.62125012,0.00040632,30]
[393846737,1763040951146,-500.0,0.00040652,120]
[393846738,1763040951172,-315.5919174,0.00040656,120]
[393846739,1763040951209,-175.64,0.00040671,60]
[393846740,1763040951235,-1000.0,0.00040673,30]
[393846741,1763040951260,-1007.12936943,0.00040673,30]
[393846742,1763040951285,-7288.17355212,0.00040673,30]
[393846743,1763040951311,-7288.17355212,0.00040673,30]
[393846744,1763040951336,-7288.17355212,0.00040673,30]
[393846745,1763040951367,-7288.17355212,0.00040673,30]
[393846746,1763040951394,-500.0,0.00040673,120]
[393846747,1763040951420,-152.84966785,0.00040685,30]
[393846748,1763040951446,-150.0,0.00040693,30]
[393846749,1763040951471,-200512.07106205,0.00040693,30]
[393846750,1763040951496,-339.70644284,0.00040693,30]
[393846751,1763040951524,-150.0,0.000407,60]
[393846752,1763040951552,-1589.0,0.00040706,30]
[393846753,1763040951584,-1566150.48806154,0.00040708,30]
[393846754,1763040951621,-1537816.93015875,0.00040708,30]
[393846755,1763040956469,-28333.55790279,0.00040708,30]
[393846756,1763040956499,-1566150.48806154,0.00040708,30]
[393846757,1763040956527,-1566150.48806154,0.00040708,30]
[393846758,1763040956553,-442.0,0.0004071,30]
[393846759,1763040956581,-2000.0,0.00040712,30]
[393846760,1763040956611,-2000.0,0.00040712,30]
[393846761,1763040956637,-2000.0,0.00040712,30]
[393846762,1763040956663,-2000.0,0.00040712,30]
[393846763,1763040956689,-2000.0,0.00040712,30]
[393846764,1763040956717,-2000.0,0.00040712,30]
[393846765,1763040956748,-2000.0,0.00040712,30]
[393846766,1763040956778,-2000.0,0.00040712,30]
[393846767,1763040956803,-2000.0,0.00040712,30]
[393846768,1763040956830,-2000.0,0.00040712,30]
[393846769,1763040956857,-1000.0,0.00040712,30]
[393846770,1763040956883,-1000.0,0.00040712,30]
[393846771,1763040956908,-1000.0,0.00040712,30]
[393846772,1763040956933,-1000.0,0.00040712,30]
[393846773,1763040956958,-1000.0,0.00040712,30]
[393846774,1763040956984,-1000.0,0.00040712,30]
[393846775,1763040957015,-1000.0,0.00040712,30]
[393846776,1763040957040,-1000.0,0.00040712,30]
[393846777,1763040957065,-1000.0,0.00040712,30]
[393846778,1763040957091,-1000.0,0.00040712,30]
[393846779,1763040957118,-1000.0,0.00040712,30]
[393846780,1763040957144,-22342.13549097,0.000408,60]
[393846781,1763040957170,-212.0,0.0004093,30]
[393846782,1763040957196,-500.0,0.00040947,120]
[393846783,1763040957221,-175.64,0.00040951,60]
[393846784,1763040957251,-1182.42,0.00041,120]
[393846785,1763040957276,-1611.79470029,0.00041,61]
[393846786,1763040957302,-527.66939416,0.00041,30]
[393846787,1763040957332,-1299.0,0.00041,120]
[393846788,1763040957359,-250.0,0.00041,120]
[393846789,1763040957384,-176.0,0.00041,90]
[393846790,1763040957410,-1011.97790553,0.00041,30]
[393846791,1763040957437,-250.31,0.00041096,120]
[393846792,1763040957463,-2000.0,0.00041096,120]
[393846793,1763040957489,-1000.0,0.00041096,120]
[393846794,1763040957517,-1999.0,0.000411,30]
[393846795,1763040957543,-359.23274531,0.0004111,120]
[393846796,1763040957569,-500.0,0.00041221,120]
[393846797,1763040957599,-175.64,0.00041228,60]
[393846798,1763040957627,-155.32698195,0.00041397,120]
[393846799,1763040957653,-200.0,0.000414,120]
[393846800,1763040957678,-500.0,0.00041495,120]
[393846801,1763040957704,-150.0,0.00041499,120]
[393846802,1763040957731,-175.64,0.00041506,60]
[393846803,1763040957757,-500.0,0.00041534,120]
[393846804,1763040957782,-206.37744859,0.00041748,120]
[393846805,1763040957809,-203.5,0.00041769,120]
[393846806,1763040957834,-175.64,0.00041784,60]
[393846807,1763040957862,-200.0,0.00042,120]
[393846808,1763040957886,-154.36134981,0.00042,120]
[393846809,1763040957911,-249.31,0.00042,30]
[393846810,1763040957936,-480.0677942,0.00042,120]
[393846811,1763040957961,-321.82472134,0.00042,120]
[393846812,1763040958221,-470.58970678,0.00042,30]
[393846813,1763040958247,-257.35822754,0.00042,120]
[393846814,1763040958273,-175.64,0.00042062,60]
[393846815,1763040958303,-500.0,0.00042192,120]
[393846816,1763040958330,-200.0,0.00042192,120]
[393846817,1763040958357,-1020.22,0.000423,30]
[393846818,1763040958383,-500.0,0.00042337,60]
[393846819,1763040958408,-500.0,0.00042337,60]
[393846820,1763040958434,-175.64,0.0004234,60]
[393846821,1763040958459,-500.0,0.00042417,120]
[393846822,1763040958491,-500.0,0.00042481,120]
[393846823,1763040958517,-750.0,0.000425,30]
[393846824,1763040958549,-3019.47125732,0.000425,120]
[393846825,1763040958576,-200.21253075,0.000425,120]
[393846826,1763040958602,-198.17208615,0.0004251,120]
[393846827,1763040958630,-175.64,0.00042617,60]
[393846828,1763040958656,-373.61208934,0.000427,90]
[393846829,1763040958687,-150.0,0.00042748,120]
[393846830,1763040958720,-1811.70380021,0.00042799,120]
[393846831,1763040958750,-213.04364559,0.00042799,120]
[393846832,1763040958776,-220.69563683,0.00042799,120]
[393846833,1763040958806,-200.79161679,0.000428,120]